fUST/lending_fUST_20240802
["ID","MTS","AMOUNT","RATE_DAILY","PERIOD"]
[333821767,1722529856144,-500.0,0.00015068,2]
[333821768,1722529856154,-500.0,0.00015068,2]
[333821769,1722529856164,-570.21,0.00015068,2]
[333821770,1722529856174,-685.96,0.00015068,2]
[333821771,1722529856184,-500.0,0.00015068,2]
[333821772,1722529856194,-500.0,0.00015068,2]
[333821773,1722529856205,-500.0,0.00015068,2]
[333821774,1722529856215,-500.0,0.00015068,2]
[333821775,1722529856224,-500.0,0.00015068,2]
[333821776,1722529856234,-500.0,0.00015068,2]
[333821777,1722529856243,-500.0,0.00015068,2]
[333821778,1722529856253,-500.0,0.00015068,2]
[333821779,1722529856262,-500.0,0.00015068,2]
[333821780,1722529856272,-3879.78473841,0.00015174,2]
[333821781,1722529856281,-500.0,0.00015342,2]
[333821782,1722529856290,-500.0,0.00015342,2]
[333821783,1722529856300,-500.0,0.00015342,2]
[333821784,1722529856322,-500.0,0.00015342,2]
[333821785,1722529856334,-500.0,0.00015342,2]
[333821786,1722529856343,-500.0,0.00015342,2]
[333821787,1722529856352,-500.0,0.00015342,2]
[333821788,1722529856362,-500.0,0.00015342,2]
[333821789,1722529856371,-500.0,0.00015342,2]
[333821790,1722529856381,-500.0,0.00015342,2]
[333821791,1722529856390,-500.0,0.00015342,2]
[333821792,1722529856399,-500.0,0.00015342,2]
[333821793,1722529856408,-500.0,0.00015342,2]
[333821794,1722529856418,-500.0,0.00015342,2]
[333821795,1722529856428,-500.0,0.00015342,2]
[333821796,1722529856437,-500.0,0.00015342,2]
[333821797,1722529856446,-500.0,0.00015342,2]
[333821798,1722529856455,-500.0,0.00015342,2]
[333821799,1722529856465,-500.0,0.00015342,2]
[333821800,1722529856474,-500.0,0.00015342,2]
[333821801,1722529856484,-500.0,0.00015342,2]
[333821802,1722529856493,-520.19917064,0.00015342,2]
[333821803,1722529856502,-500.0,0.00015342,2]
[333821804,1722529856512,-500.0,0.00015342,2]
[333821805,1722529856523,-500.0,0.00015342,2]
[333821806,1722529856533,-500.0,0.00015342,2]
[333821807,1722529856547,-568.21,0.00015342,2]
[333821808,1722529856556,-500.0,0.00015342,2]
[333821809,1722529856565,-500.0,0.00015342,2]
[333821810,1722529856575,-500.0,0.00015342,2]
[333821811,1722529856585,-506.53640605,0.00015342,2]
[333821812,1722529856594,-500.0,0.00015342,2]
[333821813,1722529856603,-500.0,0.00015342,2]
[333821814,1722529856613,-500.0,0.00015342,2]
[333821815,1722529856624,-500.0,0.00015342,2]
[333821816,1722529856634,-570.38,0.00015342,2]
[333821817,1722529856644,-1420.73,0.00015342,2]
[333821818,1722529856653,-507.0,0.00015342,2]
[333821819,1722529856662,-500.0,0.00015342,2]
[333821820,1722529856671,-163.22079277,0.00015342,2]
[333821821,1722529856681,-650.06,0.00015342,2]
[333821822,1722529856691,-500.0,0.00015342,2]
[333821823,1722529856700,-1050.97,0.00015342,2]
[333821824,1722529856709,-500.0,0.00015342,2]
[333821825,1722529856719,-711.69,0.00015342,2]
[333821826,1722529856729,-500.0,0.00015342,2]
[333821827,1722529856738,-1581.38,0.00015342,2]
[333821828,1722529856748,-554.35,0.00015342,2]
[333821829,1722529856758,-500.0,0.00015342,2]
[333821830,1722529856768,-500.0,0.00015342,2]
[333821831,1722529856778,-250.21811359,0.00015342,2]
[333821832,1722529856788,-500.0,0.00015342,2]
[333821833,1722529856798,-500.0,0.00015342,2]
[333821834,1722529856817,-500.0,0.00015342,2]
[333821835,1722529856885,-2274.26,0.00015342,2]
[333821836,1722529856895,-500.0,0.00015342,2]
[333821837,1722529856904,-1888.44,0.00015342,2]
[333821838,1722529856914,-500.0,0.00015342,2]
[333821839,1722529856923,-500.0,0.00015342,2]
[333821840,1722529856933,-584.79,0.00015342,2]
[333821841,1722529856943,-500.0,0.00015342,2]
[333821842,1722529856952,-661.03,0.00015342,2]
[333821843,1722529856962,-715.46,0.00015342,2]
[333821844,1722529856972,-500.0,0.00015342,2]
[333821845,1722529856981,-500.0,0.00015342,2]
[333821846,1722529856991,-500.0,0.00015342,2]
[333821847,1722529857001,-2098.84,0.00015342,2]
[333821848,1722529857009,-500.0,0.00015342,2]
[333821849,1722529857020,-500.0,0.00015342,2]
[333821850,1722529857029,-500.0,0.00015342,2]
[333821851,1722529857039,-500.0,0.00015342,2]
[333821852,1722529857049,-500.0,0.00015342,2]
[333821853,1722529857058,-716.97,0.00015342,2]
[333821854,1722529857067,-500.0,0.00015342,2]
[333821855,1722529857078,-501.65,0.00015342,2]
[333821856,1722529857089,-1329.71,0.00015342,2]
[333821857,1722529857099,-500.0,0.00015342,2]
[333821858,1722529857108,-500.0,0.00015342,2]
[333821859,1722529857118,-500.0,0.00015342,2]
[333821860,1722529857129,-500.0,0.00015342,2]
[333821861,1722529857138,-500.0,0.00015342,2]
[333821862,1722529857148,-570.21,0.00015342,2]
[333821863,1722529857157,-685.96,0.00015342,2]
[333821864,1722529857167,-500.0,0.00015342,2]
[333821865,1722529857176,-500.0,0.00015342,2]
[333821866,1722529857185,-500.0,0.00015342,2]
[333821867,1722529857195,-500.0,0.00015342,2]
[333821868,1722529857204,-500.0,0.00015342,2]
[333821869,1722529857213,-500.0,0.00015342,2]
[333821870,1722529857223,-500.0,0.00015342,2]
[333821871,1722529857232,-500.0,0.00015342,2]
[333821872,1722529857241,-500.0,0.00015342,2]
[333821873,1722529857251,-515.74558089,0.00015616,2]
[333821874,1722529857261,-500.0,0.00015616,2]
[333821875,1722529857270,-500.0,0.00015616,2]
[333821876,1722529857280,-500.0,0.00015616,2]
[333821877,1722529857290,-150.67399796,0.00015616,2]
[333821878,1722529857302,-500.0,0.00015616,2]
[333821879,1722529857320,-500.0,0.00015616,2]
[333821880,1722529857330,-500.0,0.00015616,2]
[333821881,1722529857339,-500.0,0.00015616,2]
[333821882,1722529857353,-500.0,0.00015616,2]
[333821883,1722529857364,-500.0,0.00015616,2]
[333821884,1722529857374,-500.0,0.00015616,2]
[333821885,1722529857384,-500.0,0.00015616,2]
[333821886,1722529857393,-500.0,0.00015616,2]
[333821887,1722529857404,-500.0,0.00015616,2]
[333821888,1722529857413,-500.0,0.00015616,2]
[333821889,1722529857424,-500.0,0.00015616,2]
[333821890,1722529857434,-500.0,0.00015616,2]
[333821891,1722529857443,-500.0,0.00015616,2]
[333821892,1722529857453,-500.0,0.00015616,2]
[333821893,1722529857463,-500.0,0.00015616,2]
[333821894,1722529857473,-500.0,0.00015616,2]
[333821895,1722529857482,-500.0,0.00015616,2]
[333821896,1722529857493,-568.21,0.00015616,2]
[333821897,1722529857503,-500.0,0.00015616,2]
[333821898,1722529857513,-500.0,0.00015616,2]
[333821899,1722529857526,-500.0,0.00015616,2]
[333821900,1722529857536,-500.0,0.00015616,2]
[333821901,1722529857546,-500.0,0.00015616,2]
[333821902,1722529857563,-500.0,0.00015616,2]
[333821903,1722529857574,-500.0,0.00015616,2]
[333821904,1722529857584,-570.38,0.00015616,2]
[333821905,1722529857594,-1420.73,0.00015616,2]
[333821906,1722529857606,-507.0,0.00015616,2]
[333821907,1722529857616,-500.0,0.00015616,2]
[333821908,1722529857626,-650.06,0.00015616,2]
[333821909,1722529857636,-500.0,0.00015616,2]
[333821910,1722529857645,-1050.97,0.00015616,2]
[333821911,1722529857655,-500.0,0.00015616,2]
[333821912,1722529857664,-711.69,0.00015616,2]
[333821913,1722529857674,-500.0,0.00015616,2]
[333821914,1722529857684,-1581.38,0.00015616,2]
[333821915,1722529857693,-554.35,0.00015616,2]
[333821916,1722529857704,-500.0,0.00015616,2]
[333821917,1722529857713,-500.0,0.00015616,2]
[333821918,1722529857724,-500.0,0.00015616,2]
[333821919,1722529857734,-500.0,0.00015616,2]
[333821920,1722529857744,-500.0,0.00015616,2]
[333821921,1722529857754,-2274.26,0.00015616,2]
[333821922,1722529857766,-500.0,0.00015616,2]
[333821923,1722529857776,-1888.44,0.00015616,2]
[333821924,1722529857786,-500.0,0.00015616,2]
[333821925,1722529857796,-500.0,0.00015616,2]
[333821926,1722529857808,-584.79,0.00015616,2]
[333821927,1722529857821,-500.0,0.00015616,2]
[333821928,1722529857832,-661.03,0.00015616,2]
[333821929,1722529857842,-715.46,0.00015616,2]
[333821930,1722529857852,-500.0,0.00015616,2]
[333821931,1722529857862,-500.0,0.00015616,2]
[333821932,1722529857872,-500.0,0.00015616,2]
[333821933,1722529857881,-2098.84,0.00015616,2]
[333821934,1722529857892,-239.97571439,0.00015616,2]
[333821935,1722529857901,-500.0,0.00015616,2]
[333821936,1722529857911,-500.0,0.00015616,2]
[333821937,1722529857974,-500.0,0.00015616,2]
[333821938,1722529857984,-716.97,0.00015616,2]
[333821939,1722529857996,-500.0,0.00015616,2]
[333821940,1722529858006,-501.65,0.00015616,2]
[333821941,1722529858016,-1329.71,0.00015616,2]
[333821942,1722529858026,-500.0,0.00015616,2]
[333821943,1722529858036,-219.31235135,0.00015616,2]
[333821944,1722529858046,-500.0,0.00015616,2]
[333821945,1722529858060,-500.0,0.00015616,2]
[333821946,1722529858073,-500.0,0.00015616,2]
[333821947,1722529858084,-570.21,0.00015616,2]
[333821948,1722529858093,-685.96,0.00015616,2]
[333821949,1722529858103,-500.0,0.00015616,2]
[333821950,1722529858112,-500.0,0.00015616,2]
[333821951,1722529858122,-500.0,0.00015616,2]
[333821952,1722529858131,-500.0,0.00015616,2]
[333821953,1722529858140,-500.0,0.00015616,2]
[333821954,1722529858149,-500.0,0.00015616,2]
[333821955,1722529858158,-500.0,0.00015616,2]
[333821956,1722529858168,-500.0,0.00015616,2]
[333821957,1722529858177,-500.0,0.00015616,2]
[333821958,1722529858187,-28148.25574868,0.00015707,2]
[333821959,1722529858323,-39043.87065221,0.00015707,2]
[333821960,1722529858333,-4925.97797161,0.00015707,2]
[333821961,1722529858357,-97505.03972851,0.00015707,2]
[333821962,1722529858374,-34919.23184684,0.00015707,2]
[333821963,1722529858395,-16123.49822099,0.00015707,2]
[333821964,1722529858415,-1500.0,0.00015707,2]
[333821965,1722529858435,-3184.59197636,0.00015707,2]
[333821966,1722529858455,-151.0,0.00015707,2]
[333821967,1722529858471,-284.622162,0.00015707,2]
[333821968,1722529858488,-284.622162,0.00015707,2]
[333821969,1722529858507,-411.408536,0.00015707,2]
[333821970,1722529858528,-411.408536,0.00015707,2]
[333821971,1722529858542,-298.831311,0.00015707,2]
[333821972,1722529858564,-151.0,0.00015707,2]
[333821973,1722529858580,-298.831311,0.00015707,2]
[333821974,1722529858598,-151.0,0.00015707,2]
[333821975,1722529858611,-151.0,0.00015707,2]
[333821976,1722529858626,-151.0,0.00015707,2]
[333821977,1722529858640,-151.0,0.00015707,2]
[333821978,1722529858655,-151.0,0.00015707,2]
[333821979,1722529858670,-323.041289,0.00015707,2]
[333821980,1722529858685,-323.041289,0.00015707,2]
[333821981,1722529858699,-151.0,0.00015707,2]
[333821982,1722529858714,-151.0,0.00015707,2]
[333821983,1722529858729,-10665.45915499,0.00015708,2]
[333821984,1722529858744,-3821.93300332,0.00015708,2]
[333821985,1722529858759,-4016.12367644,0.00015708,2]
[333821986,1722529858775,-6198.93259454,0.00015708,2]
[333821987,1722529858785,-5246.22664739,0.00015708,3]
[333821988,1722529858795,-1133.9853025,0.00015708,2]
[333821989,1722529858804,-727.33991579,0.00015708,2]
[333821990,1722529858820,-47805.2093941,0.00015709,2]
[333821991,1722529858830,-1091.36515182,0.0001571,2]
[333821992,1722529858840,-531.94294972,0.0001571,2]
[333821993,1722529858850,-151.0,0.00015712,2]
[333821994,1722529858860,-151.0,0.00015712,2]
[333821995,1722529858870,-151.0,0.00015712,2]
[333821996,1722529858879,-154.80286552,0.00015712,2]
[333821997,1722529858888,-527.09552675,0.00015712,2]
[333821998,1722529858897,-341.96120082,0.00015712,2]
[333821999,1722529858908,-816.07415827,0.00015744,2]
[333822000,1722529858917,-261.15018643,0.00015744,2]
[333822001,1722529858927,-473.887496,0.00015744,2]
[333822002,1722529858938,-2191.76200747,0.00015744,2]
[333822003,1722529858948,-4060.78089041,0.00015746,2]
[333822004,1722529858958,-4060.78089041,0.00015746,2]
[333822005,1722529858967,-4979.9152689,0.00015746,2]
[333822006,1722529858978,-779.46237368,0.00015746,2]
[333822007,1722529859154,-3312.04618843,0.00015751,2]
[333822008,1722529859164,-200.0,0.00015773,2]
[333822009,1722529859175,-459.55767833,0.00015851,4]
[333822010,1722529859185,-164.51019964,0.00015851,2]
[333822011,1722529859195,-156.92418716,0.00015851,2]
[333822012,1722529859205,-500.0,0.0001589,2]
[333822013,1722529859214,-500.0,0.0001589,2]
[333822014,1722529859224,-500.0,0.0001589,2]
[333822015,1722529859233,-500.0,0.0001589,2]
[333822016,1722529859243,-500.0,0.0001589,2]
[333822017,1722529859253,-500.0,0.0001589,2]
[333822018,1722529859262,-500.0,0.0001589,2]
[333822019,1722529859272,-500.0,0.0001589,2]
[333822020,1722529859281,-500.0,0.0001589,2]
[333822021,1722529859291,-500.0,0.0001589,2]
[333822022,1722529859300,-500.0,0.0001589,2]
[333822023,1722529859318,-500.0,0.0001589,2]
[333822024,1722529859327,-500.0,0.0001589,2]
[333822025,1722529859336,-500.0,0.0001589,2]
[333822026,1722529859346,-500.0,0.0001589,2]
[333822027,1722529859354,-500.0,0.0001589,2]
[333822028,1722529859363,-361.93460583,0.0001589,2]
[333822029,1722529859372,-500.0,0.0001589,2]
[333822030,1722529859382,-500.0,0.0001589,2]
[333822031,1722529859392,-500.0,0.0001589,2]
[333822032,1722529859402,-568.21,0.0001589,2]
[333822033,1722529859412,-500.0,0.0001589,2]
[333822034,1722529859422,-500.0,0.0001589,2]
[333822035,1722529859431,-500.0,0.0001589,2]
[333822036,1722529859441,-500.0,0.0001589,2]
[333822037,1722529859451,-500.0,0.0001589,2]
[333822038,1722529859461,-500.0,0.0001589,2]
[333822039,1722529859471,-500.0,0.0001589,2]
[333822040,1722529859480,-570.38,0.0001589,2]
[333822041,1722529859490,-151.0,0.0001589,2]
[333822042,1722529859500,-151.0,0.0001589,2]
[333822043,1722529859509,-1420.73,0.0001589,2]
[333822044,1722529859519,-55.47403779,0.0001589,2]
[333822045,1722529859629,-482.35360975,0.00013588,2]
[333822046,1722529859640,-1517.64639025,0.00013588,2]
[333822047,1722529859649,-500.0,0.00013698,2]
[333822048,1722529859657,-403.63665668,0.00015751,2]
[333822049,1722529859667,-451.52596221,0.0001589,2]
[333822050,1722529859676,-281.39099086,0.0001589,2]
[333822051,1722529859687,-218.60900914,0.0001589,2]
[333822052,1722529859697,-130.13664922,0.0001589,2]
[333822053,1722529859780,273.37336231,9.9e-05,2]
[333822054,1722529859853,-500.0,0.00013698,2]
[333822055,1722529859862,-430.0,0.00013698,2]
[333822056,1722529867393,273.37336231,9.9e-05,2]
[333822058,1722529876012,273.37336231,9.9e-05,2]
[333822059,1722529884706,273.37336231,9.9e-05,2]
[333822060,1722529893722,273.37336231,9.9e-05,2]
[333822061,1722529902159,273.37336231,9.9e-05,2]
[333822062,1722529910724,273.37336231,9.9e-05,2]
[333822063,1722529914024,4710.72234215,9.9e-05,2]
[333822064,1722529918954,273.37336231,9.9e-05,2]
[333822065,1722529919543,594.88378821,9.9e-05,2]
[333822098,1722529926906,273.37336231,9.9e-05,2]
[333822099,1722529935119,273.37336231,9.9e-05,2]
[333822100,1722529943915,273.37336231,9.9e-05,2]
[333822101,1722529947559,349.28339192,9.999e-05,2]
[333822102,1722529947955,779.46237368,9.999e-05,2]
[333822103,1722529952119,273.37336231,9.9e-05,2]
[333822104,1722529958388,415.01497868,9.999e-05,2]
[333822105,1722529960071,273.37336231,9.9e-05,2]
[333822107,1722529969510,273.37336231,9.9e-05,2]
[333822108,1722529971904,440.22985697,9.999e-05,2]
[333822109,1722529973550,453.00154255,9.999e-05,2]
[333822110,1722529977451,273.37336231,9.9e-05,2]
[333822111,1722529986209,273.37336231,9.9e-05,2]
[333822112,1722529994611,273.37336231,9.9e-05,2]
[333822113,1722530003008,273.37336231,9.9e-05,2]
[333822115,1722530011658,273.37336231,9.9e-05,2]
[333822116,1722530019781,273.37336231,9.9e-05,2]
[333822117,1722530022744,156.92418716,9.999e-05,2]
[333822119,1722530028362,273.37336231,9.9e-05,2]
[333822120,1722530037058,273.37336231,9.9e-05,2]
[333822121,1722530039940,779.46237368,9.999e-05,2]
[333822122,1722530045424,273.37336231,9.9e-05,2]
[333822123,1722530053743,273.37336231,9.9e-05,2]
[333822124,1722530061826,273.37336231,9.9e-05,2]
[333822125,1722530070573,273.37336231,9.9e-05,2]
[333822126,1722530078585,273.37336231,9.9e-05,2]
[333822127,1722530086707,273.37336231,9.9e-05,2]
[333822128,1722530094611,273.37336231,9.9e-05,2]
[333822130,1722530104747,273.37336231,9.9e-05,2]
[333822131,1722530112672,273.37336231,9.9e-05,2]
[333822132,1722530120805,273.37336231,9.9e-05,2]
[333822133,1722530128855,273.37336231,9.9e-05,2]
[333822134,1722530130244,156.92418716,9.999e-05,2]
[333822135,1722530136831,273.37336231,9.9e-05,2]
[333822137,1722530144710,273.37336231,9.9e-05,2]
[333822138,1722530145737,416.8877238,9.999e-05,2]
[333822139,1722530146250,156.92418716,9.999e-05,2]
[333822140,1722530154105,273.37336231,9.9e-05,2]
[333822141,1722530162207,273.37336231,9.9e-05,2]
[333822142,1722530170449,273.37336231,9.9e-05,2]
[333822143,1722530178737,273.37336231,9.9e-05,2]
[333822144,1722530187468,273.37336231,9.9e-05,2]
[333822145,1722530195896,273.37336231,9.9e-05,2]
[333822146,1722530205268,273.37336231,9.9e-05,2]
[333822147,1722530213238,273.37336231,9.9e-05,2]
[333822148,1722530222004,273.37336231,9.9e-05,2]
[333822149,1722530229917,273.37336231,9.9e-05,2]
[333822150,1722530238747,273.37336231,9.9e-05,2]
[333822151,1722530247205,273.37336231,9.9e-05,2]
[333822152,1722530254275,156.92418716,9.999e-05,2]
[333822153,1722530255501,273.37336231,9.9e-05,2]
[333822154,1722530263404,273.37336231,9.9e-05,2]
[333822155,1722530274508,273.37336231,9.9e-05,2]
[333822156,1722530282580,273.37336231,9.9e-05,2]
[333822157,1722530290731,273.37336231,9.9e-05,2]
[333822160,1722530296801,154.68290005,9.999e-05,2]
[333822161,1722530299348,273.37336231,9.9e-05,2]
[333822162,1722530308410,273.37336231,9.9e-05,2]
[333822163,1722530318350,273.37336231,9.9e-05,2]
[333822164,1722530326020,273.37336231,9.9e-05,2]
[333822165,1722530327531,165.49284567,9.999e-05,2]
[333822167,1722530333933,273.37336231,9.9e-05,2]
[333822168,1722530342136,273.37336231,9.9e-05,2]
[333822170,1722530345252,156.92418716,9.999e-05,2]
[333822171,1722530349980,273.37336231,9.9e-05,2]
[333822173,1722530358111,273.37336231,9.9e-05,2]
[333822174,1722530365990,273.37336231,9.9e-05,2]
[333822175,1722530374278,181.33024055,9.9e-05,2]
[333822177,1722530409298,154.68290005,9.999e-05,2]
[333822178,1722530417556,165.49284567,9.999e-05,2]
[333822179,1722530425249,156.92418716,9.999e-05,2]
[333822181,1722530504826,279.41183417,9.999e-05,2]
[333822182,1722530517720,165.49284567,9.999e-05,2]
[333822183,1722530540299,156.92418716,9.999e-05,2]
[333822184,1722530555252,156.92418716,9.999e-05,2]
[333822185,1722530607311,950.92629937,0.0001,2]
[333822189,1722530618304,165.49284567,9.999e-05,2]
[333822190,1722530670297,156.92418716,9.999e-05,2]
[333822191,1722530698312,792.43858281,0.0001,2]
[333822192,1722530707630,165.49284567,9.999e-05,2]
[333822193,1722530744172,-166.56197,0.00011138,2]
[333822194,1722530744193,-107.8595993,0.000118,2]
[333822195,1722530744270,210.81987342,9.999e-05,2]
[333822196,1722530802982,165.49284567,9.999e-05,2]
[333822197,1722530810600,165.49284567,9.999e-05,2]
[333822198,1722530820305,792.43858281,0.0001,2]
[333822199,1722530827113,-176.090729,0.00011517,2]
[333822200,1722530827134,-145.2019725,0.000118,2]
[333822201,1722530827157,-176.090729,0.00011817,2]
[333822202,1722530827179,-180.13202288,0.00011963,2]
[333822203,1722530832101,-119.86797712,0.00011963,2]
[333822204,1722530832123,-300.0,0.00011963,2]
[333822205,1722530832144,-2425.64981542,0.00011964,2]
[333822206,1722530844106,-17772.22132835,0.00011964,2]
[333822207,1722530847112,-805.48838466,0.00011964,2]
[333822208,1722530853117,-759.83342706,0.00011964,2]
[333822213,1722530929008,188.18564016,9.999e-05,2]
[333822214,1722530933131,196.41966399,9.999e-05,2]
[333822216,1722530934312,412.86050164,0.0001,2]
[333822218,1722530947119,-185.36928895,0.00012,2]
[333822219,1722530947143,-176.090729,0.00012117,2]
[333822220,1722530947166,-300.0,0.00012144,2]
[333822221,1722530947190,-21057.6252658,0.00012145,2]
[333822222,1722530947213,-166.56197,0.00012656,2]
[333822223,1722530947235,-169.42326,0.00012986,2]
[333822224,1722530947257,-11353.63908625,0.00013,2]
[333822225,1722530947285,-436.58098675,0.00013,2]
[333822226,1722530947307,-376.0,0.00013358,2]
[333822227,1722530947328,-727.7794491,0.00013597,2]
[333822228,1722530947351,-3696.00681867,0.00013598,2]
[333822229,1722530947373,-251.79526793,0.00013598,2]
[333822230,1722530947395,-527.09552675,0.000136,2]
[333822231,1722530947418,-31855.48592608,0.00013688,2]
[333822232,1722530958131,-24970.8333018,0.00013688,2]
[333822233,1722530959108,-1625.06635381,0.00013688,2]
[333822234,1722530976863,209.81495165,9.999e-05,2]
[333822245,1722531022332,412.86050164,0.0001,2]
[333822279,1722531032245,-928.7536126,0.00013598,2]
[333822280,1722531032257,-1575.18952862,0.00013598,2]
[333822286,1722531034128,188.18564016,9.999e-05,2]
[333822287,1722531035643,196.41966399,9.999e-05,2]
[333822303,1722531038320,-723.24907442,0.00013598,2]
[333822304,1722531038329,-3916.57092558,0.00013688,2]
[333822322,1722531039058,-45797.31424673,0.00013688,2]
[333822323,1722531039067,-500.0,0.00013698,2]
[333822324,1722531039077,-500.0,0.00013698,2]
[333822325,1722531039086,-500.0,0.00013698,2]
[333822326,1722531039096,-500.0,0.00013698,2]
[333822327,1722531039105,-500.0,0.00013698,2]
[333822328,1722531039114,-500.0,0.00013698,2]
[333822329,1722531039123,-500.0,0.00013698,2]
[333822330,1722531039132,-500.0,0.00013698,2]
[333822331,1722531039141,-205.54255952,0.00013698,2]
[333822332,1722531039151,-500.0,0.00013698,2]
[333822333,1722531039162,-484.94979005,0.00013698,2]
[333822334,1722531039171,-500.35601503,0.00013698,2]
[333822335,1722531039180,-500.0,0.00013698,2]
[333822336,1722531039189,-500.0,0.00013698,2]
[333822337,1722531039198,-500.0,0.00013698,2]
[333822338,1722531039207,-500.0,0.00013698,2]
[333822339,1722531039217,-500.0,0.00013698,2]
[333822340,1722531039225,-500.0,0.00013698,2]
[333822341,1722531039236,-500.0,0.00013698,2]
[333822342,1722531039249,-500.0,0.00013698,2]
[333822343,1722531039261,-500.0,0.00013698,2]
[333822344,1722531039270,-500.0,0.00013698,2]
[333822345,1722531039281,-594.26768528,0.00013698,2]
[333822346,1722531039290,-500.0,0.00013698,2]
[333822347,1722531039300,-508.13183793,0.00013698,2]
[333822348,1722531039310,-500.0,0.00013698,2]
[333822349,1722531039319,-500.0,0.00013698,2]
[333822350,1722531039328,-547.63964332,0.00013698,2]
[333822351,1722531039337,-500.0,0.00013698,2]
[333822352,1722531039346,-507.62258195,0.00013698,2]
[333822353,1722531039357,-500.0,0.00013698,2]
[333822354,1722531039366,-500.0,0.00013698,2]
[333822355,1722531039375,-500.0,0.00013698,2]
[333822356,1722531039384,-500.0,0.00013698,2]
[333822357,1722531039394,-500.0,0.00013698,2]
[333822358,1722531039403,-500.0,0.00013698,2]
[333822359,1722531039412,-500.0,0.00013698,2]
[333822360,1722531039422,-500.0,0.00013698,2]
[333822361,1722531039431,-474.87074977,0.00013698,2]
[333822362,1722531039441,-645.45453373,0.00013698,2]
[333822363,1722531039450,-500.0,0.00013698,2]
[333822364,1722531039460,-547.53470764,0.00013698,2]
[333822365,1722531039470,-550.83473118,0.00013698,2]
[333822366,1722531039481,-500.0,0.00013698,2]
[333822367,1722531039490,-500.0,0.00013698,2]
[333822368,1722531039501,-506.22815648,0.00013698,2]
[333822369,1722531039511,-500.0,0.00013698,2]
[333822370,1722531039520,-500.0,0.00013698,2]
[333822371,1722531039530,-500.0,0.00013698,2]
[333822372,1722531039540,-500.0,0.00013698,2]
[333822373,1722531039549,-500.0,0.00013698,2]
[333822374,1722531039558,-500.0,0.00013698,2]
[333822375,1722531039569,-500.0,0.00013698,2]
[333822376,1722531039578,-500.0,0.00013698,2]
[333822377,1722531039588,-500.0,0.00013698,2]
[333822378,1722531039599,-503.97976153,0.00013698,2]
[333822379,1722531039608,-500.0,0.00013698,2]
[333822380,1722531039617,-500.0,0.00013698,2]
[333822381,1722531039627,-354.65484422,0.00013698,2]
[333822382,1722531039637,-500.0,0.00013698,2]
[333822383,1722531039648,-500.0,0.00013698,2]
[333822384,1722531039658,-500.0,0.00013698,2]
[333822385,1722531039668,-503.59309508,0.00013698,2]
[333822386,1722531039677,-339.54805897,0.00013698,2]
[333822387,1722531039687,-500.0,0.00013698,2]
[333822388,1722531039696,-511.79569878,0.00013698,2]
[333822389,1722531039705,-500.0,0.00013698,2]
[333822391,1722531039716,-500.0,0.00013698,2]
[333822393,1722531039726,-500.0,0.00013698,2]
[333822394,1722531039735,-500.0,0.00013698,2]
[333822395,1722531039747,-500.0,0.00013698,2]
[333822396,1722531039757,-500.0,0.00013698,2]
[333822397,1722531039766,-500.0,0.00013698,2]
[333822398,1722531039867,-402.99362953,0.00013698,2]
[333822400,1722531039877,-503.13608892,0.00013698,2]
[333822401,1722531039886,-500.0,0.00013698,2]
[333822402,1722531039896,-500.0,0.00013698,2]
[333822403,1722531039912,-500.0,0.00013698,2]